fUST/lending_fUST_20250720
["ID","MTS","AMOUNT","RATE_DAILY","PERIOD"]
[373405359,1752988248418,-460.0,0.00018317,2]
[373405360,1752988248427,-537.36,0.00018317,2]
[373405361,1752988248437,-473.00295395,0.00018317,2]
[373405362,1752988248446,-460.0,0.00018317,2]
[373405363,1752988248455,-460.0,0.00018317,2]
[373405364,1752988248465,-460.0,0.00018317,2]
[373405365,1752988248474,-460.0,0.00018317,2]
[373405366,1752988248483,-460.0,0.00018317,2]
[373405367,1752988248493,-460.0,0.00018317,2]
[373405368,1752988248502,-460.0,0.00018317,2]
[373405369,1752988248511,-460.0,0.00018317,2]
[373405370,1752988248520,-460.0,0.00018317,2]
[373405371,1752988248529,-668.97,0.00018318,2]
[373405372,1752988248539,-1680.5,0.00018318,2]
[373405373,1752988248548,-464.26113535,0.00018318,2]
[373405374,1752988248557,-726.41,0.00018318,2]
[373405375,1752988248567,-1000.0,0.00018321,2]
[373405376,1752988248576,-501.29624381,0.00018321,2]
[373405377,1752988248586,-1000.0,0.00018321,2]
[373405378,1752988248595,-500.0,0.00018321,2]
[373405379,1752988248604,-1149.56,0.00018418,2]
[373405380,1752988248614,-460.0,0.00018418,2]
[373405381,1752988248623,-460.0,0.00018418,2]
[373405382,1752988248632,-781.78,0.00018418,2]
[373405383,1752988248642,-851.76,0.00018418,2]
[373405384,1752988248651,-460.0,0.00018418,2]
[373405385,1752988248661,-595.15908724,0.00018488,2]
[373405386,1752988248670,-226.49,0.00018488,2]
[373405387,1752988248679,-460.0,0.00018488,2]
[373405388,1752988248689,-460.0,0.00018488,2]
[373405389,1752988248698,-2275.52,0.00018488,2]
[373405390,1752988248708,-460.0,0.00018488,2]
[373405391,1752988248717,-460.0,0.00018489,2]
[373405392,1752988248727,-479.41,0.00018489,2]
[373405393,1752988248736,-460.0,0.00018489,2]
[373405394,1752988248746,-460.0,0.00018489,2]
[373405395,1752988248755,-1541.51,0.00018489,2]
[373405396,1752988248765,-460.0,0.00018489,2]
[373405397,1752988248774,-517.18,0.00018489,2]
[373405398,1752988248783,-460.0,0.00018489,2]
[373405399,1752988248793,-1155.65,0.00018489,2]
[373405400,1752988248802,-460.0,0.00018489,2]
[373405401,1752988248812,-460.0,0.00018489,2]
[373405402,1752988248822,-460.0,0.00018489,2]
[373405403,1752988248831,-460.0,0.00018489,2]
[373405404,1752988248841,-460.0,0.00018489,2]
[373405405,1752988248850,-460.0,0.00018489,2]
[373405406,1752988248860,-460.0,0.00018489,2]
[373405407,1752988248870,-916.2,0.00018489,2]
[373405408,1752988248880,-460.0,0.00018489,2]
[373405409,1752988248890,-460.0,0.00018489,2]
[373405410,1752988248900,-559.57,0.00018489,2]
[373405411,1752988248909,-460.0,0.0001849,2]
[373405412,1752988248918,-460.0,0.0001849,2]
[373405413,1752988248927,-460.0,0.0001849,2]
[373405414,1752988248936,-460.0,0.0001849,2]
[373405415,1752988248945,-460.0,0.0001849,2]
[373405416,1752988248955,-460.0,0.0001849,2]
[373405417,1752988248964,-460.0,0.0001849,2]
[373405418,1752988248973,-460.0,0.0001849,2]
[373405419,1752988248982,-460.0,0.0001849,2]
[373405420,1752988248991,-460.0,0.0001849,2]
[373405421,1752988249000,-460.0,0.0001849,2]
[373405422,1752988249010,-460.0,0.0001849,2]
[373405423,1752988249019,-575.36,0.0001849,2]
[373405424,1752988249028,-460.0,0.0001849,2]
[373405425,1752988249038,-460.0,0.0001849,2]
[373405426,1752988249047,-460.0,0.0001849,2]
[373405427,1752988249056,-460.0,0.0001849,2]
[373405428,1752988249066,-498.50939823,0.0001849,2]
[373405429,1752988249075,-460.0,0.0001849,2]
[373405430,1752988249084,-460.0,0.0001849,2]
[373405431,1752988249093,-460.0,0.0001849,2]
[373405432,1752988249102,-460.0,0.0001849,2]
[373405433,1752988249112,-460.0,0.0001849,2]
[373405434,1752988249121,-370.54610991,0.0001849,2]
[373405435,1752988249130,-460.0,0.0001849,2]
[373405436,1752988249139,-460.0,0.0001849,2]
[373405437,1752988249149,-461.73,0.0001849,2]
[373405438,1752988249158,-334.47,0.0001849,2]
[373405439,1752988249167,-460.0,0.0001849,2]
[373405440,1752988249177,-460.0,0.0001849,2]
[373405441,1752988249186,-460.0,0.0001849,2]
[373405442,1752988249196,-467.76582936,0.0001849,2]
[373405443,1752988249205,-460.0,0.0001849,2]
[373405444,1752988249215,-460.0,0.0001849,2]
[373405445,1752988249224,-707.64,0.0001849,2]
[373405446,1752988249233,-460.0,0.0001849,2]
[373405447,1752988249242,-460.0,0.0001849,2]
[373405448,1752988249251,-354.41743296,0.0001849,2]
[373405449,1752988249260,-460.0,0.0001849,2]
[373405450,1752988249270,-460.0,0.0001849,2]
[373405451,1752988249279,-460.0,0.0001849,2]
[373405452,1752988249289,-460.0,0.0001849,2]
[373405453,1752988249302,-460.0,0.0001849,2]
[373405454,1752988249311,-1490.15,0.0001849,2]
[373405455,1752988249320,-472.33,0.0001849,2]
[373405456,1752988249329,-166.23063077,0.0001849,2]
[373405457,1752988249340,-462.34,0.0001849,2]
[373405458,1752988249349,-460.0,0.0001849,2]
[373405459,1752988249358,-482.19166301,0.0001849,2]
[373405460,1752988249368,-460.0,0.0001849,2]
[373405461,1752988249377,-460.0,0.00018589,2]
[373405462,1752988249386,-480.23,0.00018589,2]
[373405463,1752988249395,-460.0,0.00018589,2]
[373405464,1752988249404,-460.0,0.00018589,2]
[373405465,1752988249413,-460.0,0.0001859,2]
[373405466,1752988249423,-460.0,0.0001859,2]
[373405467,1752988249432,-460.0,0.0001859,2]
[373405468,1752988249441,-460.0,0.0001859,2]
[373405469,1752988249450,-460.0,0.0001859,2]
[373405470,1752988249460,-460.0,0.0001859,2]
[373405471,1752988249469,-460.0,0.0001859,2]
[373405472,1752988249478,-460.0,0.0001859,2]
[373405473,1752988249487,-460.0,0.0001859,2]
[373405474,1752988249497,-460.0,0.0001859,2]
[373405475,1752988249506,-460.0,0.0001859,2]
[373405476,1752988249515,-460.0,0.0001859,2]
[373405477,1752988249524,-225.03217727,0.0001859,2]
[373405478,1752988249534,-460.0,0.0001859,2]
[373405479,1752988249543,-460.0,0.0001859,2]
[373405480,1752988249552,-460.0,0.0001859,2]
[373405481,1752988249562,-460.0,0.0001859,2]
[373405482,1752988249571,-395.22,0.0001859,2]
[373405483,1752988249581,-460.0,0.0001859,2]
[373405484,1752988249590,-460.0,0.00018591,2]
[373405485,1752988249599,-292.80812658,0.00018591,2]
[373405486,1752988249608,-460.0,0.00018591,2]
[373405487,1752988249618,-460.0,0.00018591,2]
[373405488,1752988249627,-460.0,0.00018591,2]
[373405489,1752988249636,-460.0,0.00018591,2]
[373405490,1752988249645,-537.36,0.00018591,2]
[373405491,1752988249654,-460.0,0.00018591,2]
[373405492,1752988249664,-460.0,0.00018591,2]
[373405493,1752988249674,-460.0,0.00018591,2]
[373405494,1752988249684,-460.0,0.00018591,2]
[373405495,1752988249693,-460.0,0.00018591,2]
[373405496,1752988249702,-159.89882593,0.00018591,2]
[373405497,1752988249712,-460.0,0.00018591,2]
[373405498,1752988249721,-460.0,0.00018591,2]
[373405499,1752988249730,-460.0,0.00018591,2]
[373405500,1752988249739,-668.97,0.00018592,2]
[373405501,1752988249748,-1680.5,0.00018592,2]
[373405502,1752988249757,-726.41,0.00018592,2]
[373405503,1752988249767,-1252.52960064,0.0001862,2]
[373405504,1752988249776,-512.46627473,0.00018621,2]
[373405505,1752988249883,-274.06147548,0.00018621,2]
[373405506,1752988249893,-1149.56,0.00018692,2]
[373405507,1752988249902,-460.0,0.00018692,2]
[373405508,1752988249912,-781.78,0.00018692,2]
[373405509,1752988249921,-851.76,0.00018692,2]
[373405510,1752988249930,-460.0,0.00018692,2]
[373405511,1752988249940,-238.36,0.00018762,2]
[373405512,1752988249949,-460.0,0.00018762,2]
[373405513,1752988249958,-2275.52,0.00018762,2]
[373405514,1752988249967,-460.0,0.00018762,2]
[373405515,1752988249976,-479.41,0.00018763,2]
[373405516,1752988249985,-460.0,0.00018763,2]
[373405517,1752988249994,-1541.51,0.00018763,2]
[373405518,1752988250004,-517.18,0.00018763,2]
[373405519,1752988250013,-460.0,0.00018763,2]
[373405520,1752988250023,-1155.65,0.00018763,2]
[373405521,1752988250032,-460.0,0.00018763,2]
[373405522,1752988250042,-460.0,0.00018763,2]
[373405523,1752988250051,-460.0,0.00018763,2]
[373405524,1752988250061,-460.0,0.00018763,2]
[373405525,1752988250071,-460.0,0.00018763,2]
[373405526,1752988250081,-263.7,0.00018763,2]
[373405527,1752988250090,-460.0,0.00018763,2]
[373405528,1752988250099,-916.2,0.00018763,2]
[373405529,1752988250108,-460.0,0.00018763,2]
[373405530,1752988250118,-470.093058,0.00018763,2]
[373405531,1752988250127,-559.57,0.00018763,2]
[373405532,1752988250136,-460.0,0.00018764,2]
[373405533,1752988250146,-460.0,0.00018764,2]
[373405534,1752988250155,-178.44,0.00018764,2]
[373405535,1752988250164,-460.0,0.00018764,2]
[373405536,1752988250173,-460.0,0.00018764,2]
[373405537,1752988250182,-560.07,0.00018764,2]
[373405538,1752988250192,-424.25015195,0.00018764,2]
[373405539,1752988250201,-460.0,0.00018764,2]
[373405540,1752988250209,-460.0,0.00018764,2]
[373405541,1752988250219,-192.7,0.00018764,2]
[373405542,1752988250228,-460.0,0.00018764,2]
[373405543,1752988250237,-460.0,0.00018764,2]
[373405544,1752988250247,-460.0,0.00018764,2]
[373405545,1752988250256,-460.0,0.00018764,2]
[373405546,1752988250265,-460.0,0.00018764,2]
[373405547,1752988250274,-460.0,0.00018764,2]
[373405548,1752988250284,-460.0,0.00018764,2]
[373405549,1752988250296,-460.0,0.00018764,2]
[373405550,1752988250305,-460.0,0.00018764,2]
[373405551,1752988250315,-460.0,0.00018764,2]
[373405552,1752988250324,-460.0,0.00018764,2]
[373405553,1752988250333,-559.08728347,0.00018764,2]
[373405554,1752988250342,-460.0,0.00018764,2]
[373405555,1752988250351,-460.0,0.00018764,2]
[373405556,1752988250360,-460.0,0.00018764,2]
[373405557,1752988250370,-707.64,0.00018764,2]
[373405558,1752988250380,-460.0,0.00018764,2]
[373405559,1752988250389,-551.44649509,0.00018764,2]
[373405560,1752988250399,-173.99,0.00018764,2]
[373405561,1752988250408,-460.0,0.00018764,2]
[373405562,1752988250417,-460.0,0.00018764,2]
[373405563,1752988250426,-460.0,0.00018764,2]
[373405564,1752988250435,-480.02,0.00018764,2]
[373405565,1752988250444,-1490.15,0.00018764,2]
[373405566,1752988250454,-472.33,0.00018764,2]
[373405567,1752988250463,-460.0,0.00018764,2]
[373405568,1752988250473,-460.0,0.00018764,2]
[373405569,1752988250483,-493.83869931,0.00018863,2]
[373405570,1752988250493,-460.0,0.00018863,2]
[373405571,1752988250503,-460.0,0.00018864,2]
[373405572,1752988250513,-460.0,0.00018864,2]
[373405573,1752988250522,-460.0,0.00018864,2]
[373405574,1752988250532,-460.0,0.00018864,2]
[373405575,1752988250543,-555.02,0.00018864,2]
[373405576,1752988250553,-460.0,0.00018864,2]
[373405577,1752988250564,-460.0,0.00018864,2]
[373405578,1752988250574,-559.79470352,0.00018864,2]
[373405579,1752988250584,-460.0,0.00018864,2]
[373405580,1752988250594,-460.0,0.00018864,2]
[373405581,1752988250604,-460.0,0.00018864,2]
[373405582,1752988250614,-460.0,0.00018864,2]
[373405583,1752988250623,-258.73630041,0.00018864,2]
[373405584,1752988250633,-460.0,0.00018864,2]
[373405585,1752988250643,-460.0,0.00018864,2]
[373405586,1752988250653,-460.0,0.00018865,2]
[373405587,1752988250662,-460.0,0.00018865,2]
[373405588,1752988250672,-537.36,0.00018865,2]
[373405589,1752988250682,-460.0,0.00018865,2]
[373405590,1752988250691,-460.0,0.00018865,2]
[373405591,1752988250701,-460.0,0.00018865,2]
[373405592,1752988250711,-460.0,0.00018865,2]
[373405593,1752988250720,-460.0,0.00018865,2]
[373405594,1752988250730,-668.97,0.00018866,2]
[373405595,1752988250740,-1680.5,0.00018866,2]
[373405596,1752988250749,-726.41,0.00018866,2]
[373405597,1752988250759,-2109.81505385,0.000189,2]
[373405598,1752988250768,-1324.34213773,0.000189,2]
[373405599,1752988250777,-1252.52960064,0.00018937,2]
[373405600,1752988250787,-1149.56,0.00018966,2]
[373405601,1752988250796,-460.0,0.00018966,2]
[373405602,1752988250806,-781.78,0.00018966,2]
[373405603,1752988250815,-851.76,0.00018966,2]
[373405604,1752988250825,-622.32,0.00019029,3]
[373405605,1752988250835,-311.16,0.00019029,3]
[373405606,1752988250844,-460.0,0.00019036,2]
[373405607,1752988250853,-2275.52,0.00019036,2]
[373405608,1752988250863,-460.0,0.00019036,2]
[373405609,1752988250873,-479.41,0.00019037,2]
[373405610,1752988250883,-460.0,0.00019037,2]
[373405611,1752988250892,-1541.51,0.00019037,2]
[373405612,1752988250901,-517.18,0.00019037,2]
[373405613,1752988250911,-460.0,0.00019037,2]
[373405614,1752988250919,-1155.65,0.00019037,2]
[373405615,1752988250929,-460.0,0.00019037,2]
[373405616,1752988250939,-460.0,0.00019037,2]
[373405617,1752988250948,-460.0,0.00019037,2]
[373405618,1752988250957,-460.0,0.00019037,2]
[373405619,1752988250967,-460.0,0.00019037,2]
[373405620,1752988250976,-460.0,0.00019037,2]
[373405621,1752988250985,-916.2,0.00019037,2]
[373405622,1752988250994,-460.0,0.00019037,2]
[373405623,1752988251003,-559.57,0.00019037,2]
[373405624,1752988251013,-460.0,0.00019038,2]
[373405625,1752988251022,-460.0,0.00019038,2]
[373405626,1752988251032,-252.9,0.00019038,2]
[373405627,1752988251041,-528.5709046,0.00019038,2]
[373405628,1752988251050,-460.0,0.00019038,2]
[373405629,1752988251060,-460.0,0.00019038,2]
[373405630,1752988251069,-460.0,0.00019038,2]
[373405631,1752988251079,-460.0,0.00019038,2]
[373405632,1752988251089,-460.0,0.00019038,2]
[373405633,1752988251098,-460.0,0.00019038,2]
[373405634,1752988251107,-460.0,0.00019038,2]
[373405635,1752988251117,-450.56033247,0.00019038,2]
[373405636,1752988251127,-460.0,0.00019038,2]
[373405637,1752988251136,-460.0,0.00019038,2]
[373405638,1752988251145,-460.0,0.00019038,2]
[373405639,1752988251154,-460.0,0.00019038,2]
[373405640,1752988251164,-460.0,0.00019038,2]
[373405641,1752988251173,-547.93,0.00019038,2]
[373405642,1752988251182,-460.0,0.00019038,2]
[373405643,1752988251192,-707.64,0.00019038,2]
[373405644,1752988251201,-460.0,0.00019038,2]
[373405645,1752988251211,-460.0,0.00019038,2]
[373405646,1752988251220,-460.0,0.00019038,2]
[373405647,1752988251230,-460.0,0.00019038,2]
[373405648,1752988251240,-1490.15,0.00019038,2]
[373405649,1752988251249,-472.33,0.00019038,2]
[373405650,1752988251258,-460.0,0.00019038,2]
[373405651,1752988251268,-460.0,0.00019038,2]
[373405652,1752988251277,-460.0,0.00019137,2]
[373405653,1752988251287,-460.0,0.00019138,2]
[373405654,1752988251301,-460.0,0.00019138,2]
[373405655,1752988251310,-460.0,0.00019138,2]
[373405656,1752988251320,-460.0,0.00019138,2]
[373405657,1752988251330,-460.0,0.00019138,2]
[373405658,1752988251340,-460.0,0.00019138,2]
[373405659,1752988251349,-460.0,0.00019138,2]
[373405660,1752988251359,-340.21,0.00019139,2]
[373405661,1752988251372,-537.36,0.00019139,2]
[373405662,1752988251388,-460.0,0.00019139,2]
[373405663,1752988251397,-460.0,0.00019139,2]
[373405664,1752988251410,-460.0,0.00019139,2]
[373405665,1752988251420,-460.0,0.00019139,2]
[373405666,1752988251429,-668.97,0.0001914,2]
[373405667,1752988251438,-1680.5,0.0001914,2]
[373405668,1752988251448,-726.41,0.0001914,2]
[373405669,1752988251457,-1324.34213769,0.00019141,2]
[373405670,1752988251466,-666.0,0.00019178,2]
[373405671,1752988251476,-182.509569,0.00019178,2]
[373405672,1752988251485,-1149.56,0.0001924,2]
[373405673,1752988251494,-460.0,0.0001924,2]
[373405674,1752988251504,-781.78,0.0001924,2]
[373405675,1752988251513,-851.76,0.0001924,2]
[373405676,1752988251607,-420.0,0.00019281,2]
[373405677,1752988251618,-405.47,0.0001931,2]
[373405678,1752988251627,-2275.52,0.0001931,2]
[373405679,1752988251637,-460.0,0.0001931,2]
[373405680,1752988251646,-479.41,0.00019311,2]
[373405681,1752988251655,-460.0,0.00019311,2]
[373405682,1752988251665,-1541.51,0.00019311,2]
[373405683,1752988251675,-517.18,0.00019311,2]
[373405684,1752988251684,-186.67,0.00019311,2]
[373405685,1752988251693,-1155.65,0.00019311,2]
[373405686,1752988251703,-221.76000003,0.00019311,2]
[373405687,1752988251712,-460.0,0.00019311,2]
[373405688,1752988251721,-460.0,0.00019311,2]
[373405689,1752988251731,-460.0,0.00019311,2]
[373405690,1752988251740,-460.0,0.00019311,2]
[373405691,1752988251749,-916.2,0.00019311,2]
[373405692,1752988251759,-460.0,0.00019311,2]
[373405693,1752988251768,-559.57,0.00019311,2]
[373405694,1752988251777,-460.0,0.00019312,2]
[373405695,1752988251787,-460.0,0.00019312,2]
[373405696,1752988251796,-460.0,0.00019312,2]
[373405697,1752988251806,-460.0,0.00019312,2]
[373405698,1752988251815,-460.0,0.00019312,2]
[373405699,1752988251824,-600.17323963,0.00019312,2]
[373405700,1752988251834,-460.0,0.00019312,2]
[373405701,1752988251843,-460.0,0.00019312,2]
[373405702,1752988251853,-460.0,0.00019312,2]
[373405703,1752988251862,-460.0,0.00019312,2]
[373405704,1752988251873,-460.0,0.00019312,2]
[373405705,1752988251882,-460.0,0.00019312,2]
[373405706,1752988251891,-460.0,0.00019312,2]
[373405707,1752988251900,-460.0,0.00019312,2]
[373405708,1752988251910,-460.0,0.00019312,2]
[373405709,1752988251919,-707.64,0.00019312,2]
[373405710,1752988251928,-460.0,0.00019312,2]
[373405711,1752988251938,-460.0,0.00019312,2]
[373405712,1752988251948,-460.0,0.00019312,2]
[373405713,1752988251957,-460.0,0.00019312,2]
[373405714,1752988251966,-1490.15,0.00019312,2]
[373405715,1752988251975,-472.33,0.00019312,2]
[373405716,1752988251984,-460.0,0.00019312,2]
[373405717,1752988251993,-460.0,0.00019312,2]
[373405718,1752988252005,-100000.0,0.00019329,2]
[373405719,1752988252015,-587.0,0.00019376,2]
[373405720,1752988252023,-1324.34213769,0.00019383,2]
[373405721,1752988252032,-460.0,0.00019412,2]
[373405722,1752988252042,-460.0,0.00019412,2]
[373405723,1752988252051,-460.0,0.00019412,2]
[373405724,1752988252060,-196.95,0.00019412,2]
[373405725,1752988252069,-182.72,0.00019412,2]
[373405726,1752988252079,-208.06,0.00019412,2]
[373405727,1752988252088,-460.0,0.00019412,2]
[373405728,1752988252098,-537.36,0.00019413,2]
[373405729,1752988252107,-312.12986255,0.00019413,2]
[373405730,1752988252116,-460.0,0.00019413,2]
[373405731,1752988252126,-460.0,0.00019413,2]
[373405732,1752988252135,-460.0,0.00019413,2]
[373405733,1752988252145,-668.97,0.00019414,2]
[373405734,1752988252154,-1680.5,0.00019414,2]
[373405735,1752988252163,-726.41,0.00019414,2]
[373405736,1752988252173,-1149.56,0.00019514,2]
[373405737,1752988252182,-460.0,0.00019514,2]
[373405738,1752988252191,-781.78,0.00019514,2]
[373405739,1752988252201,-851.76,0.00019514,2]
[373405740,1752988252211,-2275.52,0.00019584,2]
[373405741,1752988252220,-334.15614441,0.00019584,2]
[373405742,1752988252229,-479.41,0.00019585,2]
[373405743,1752988252240,-460.0,0.00019585,2]
[373405744,1752988252250,-1541.51,0.00019585,2]
[373405745,1752988252260,-517.18,0.00019585,2]
[373405746,1752988252269,-1155.65,0.00019585,2]
[373405747,1752988252279,-460.0,0.00019585,2]
[373405748,1752988252289,-460.0,0.00019585,2]
[373405749,1752988252302,-460.0,0.00019585,2]
[373405750,1752988252311,-460.0,0.00019585,2]
[373405751,1752988252320,-916.2,0.00019585,2]
[373405752,1752988252329,-597.87,0.00019585,2]
[373405753,1752988252338,-559.57,0.00019585,2]
[373405754,1752988252347,-470.8700511,0.00019586,2]
[373405755,1752988252356,-447.33,0.00019586,2]
[373405756,1752988252365,-460.0,0.00019586,2]
[373405757,1752988252375,-437.34,0.00019586,2]
[373405758,1752988252383,-355.73,0.00019586,2]
[373405759,1752988252393,-460.0,0.00019586,2]
[373405760,1752988252403,-460.0,0.00019586,2]
[373405761,1752988252412,-460.0,0.00019586,2]
[373405762,1752988252421,-460.0,0.00019586,2]
[373405763,1752988252431,-460.0,0.00019586,2]
[373405764,1752988252440,-460.0,0.00019586,2]
[373405765,1752988252449,-460.0,0.00019586,2]
[373405766,1752988252459,-460.0,0.00019586,2]
[373405767,1752988252468,-460.0,0.00019586,2]
[373405768,1752988252478,-707.64,0.00019586,2]
[373405769,1752988252487,-460.0,0.00019586,2]
[373405770,1752988252496,-460.0,0.00019586,2]
[373405771,1752988252506,-460.0,0.00019586,2]
[373405772,1752988252515,-460.0,0.00019586,2]
[373405773,1752988252524,-1490.15,0.00019586,2]
[373405774,1752988252533,-472.33,0.00019586,2]
[373405775,1752988252543,-460.0,0.00019586,2]
[373405776,1752988252552,-404.47657771,0.00019586,2]
[373405777,1752988252561,-151.0,0.000196,2]
[373405778,1752988252571,-1324.34213769,0.00019624,2]
[373405779,1752988252580,-460.0,0.00019686,2]
[373405780,1752988252589,-460.0,0.00019686,2]
[373405781,1752988252598,-460.0,0.00019686,2]
[373405782,1752988252607,-460.0,0.00019686,2]
[373405783,1752988252617,-537.36,0.00019687,2]
[373405784,1752988252627,-460.0,0.00019687,2]
[373405785,1752988252636,-460.0,0.00019687,2]
[373405786,1752988252646,-568.09,0.00019687,2]
[373405787,1752988252655,-668.97,0.00019688,2]
[373405788,1752988252664,-1680.5,0.00019688,2]
[373405789,1752988252674,-726.41,0.00019688,2]
[373405790,1752988252683,-215.71456056,0.00019693,2]
[373405791,1752988252692,-214.5637056,0.00019693,2]
[373405792,1752988252702,-12615.16111038,0.00019694,2]
[373405793,1752988252712,-160.0,0.00019694,2]
[373405794,1752988252721,-160.0,0.00019694,2]
[373405795,1752988252730,-525.91036056,0.00019694,2]
[373405796,1752988252739,-160.0,0.00019694,2]
[373405797,1752988252748,-839.59621281,0.00019694,2]
[373405798,1752988252758,-160.0,0.00019694,2]
[373405799,1752988252767,-160.0,0.00019694,2]
[373405800,1752988252776,-230.98123516,0.00019694,2]
[373405801,1752988252785,-160.0,0.00019694,2]
[373405802,1752988252794,-160.0,0.00019694,2]
[373405803,1752988252803,-1149.56,0.00019788,2]
[373405804,1752988252813,-460.0,0.00019788,2]
[373405805,1752988252823,-781.78,0.00019788,2]
[373405806,1752988252831,-851.76,0.00019788,2]
[373405807,1752988252841,-2275.52,0.00019858,2]
[373405808,1752988252850,-479.41,0.00019859,2]
[373405809,1752988252859,-176.61,0.00019859,2]
[373405810,1752988252870,-1541.51,0.00019859,2]
[373405811,1752988252879,-517.18,0.00019859,2]
[373405812,1752988252888,-1155.65,0.00019859,2]
[373405813,1752988252897,-460.0,0.00019859,2]
[373405814,1752988252907,-460.0,0.00019859,2]
[373405815,1752988252916,-460.0,0.00019859,2]
[373405816,1752988252925,-460.0,0.00019859,2]
[373405817,1752988252934,-916.2,0.00019859,2]
[373405818,1752988252943,-559.57,0.00019859,2]
[373405819,1752988252953,-412.70668576,0.0001986,2]
[373405820,1752988252963,-460.0,0.0001986,2]
[373405821,1752988252972,-264.64023351,0.0001986,2]
[373405822,1752988252982,-460.0,0.0001986,2]
[373405823,1752988252991,-460.0,0.0001986,2]
[373405824,1752988253000,-460.0,0.0001986,2]
[373405825,1752988253009,-460.0,0.0001986,2]
[373405826,1752988253018,-460.0,0.0001986,2]
[373405827,1752988253027,-460.0,0.0001986,2]
[373405828,1752988253036,-460.0,0.0001986,2]
[373405829,1752988253046,-707.64,0.0001986,2]
[373405830,1752988253056,-460.0,0.0001986,2]
[373405831,1752988253065,-306.66,0.0001986,2]
[373405832,1752988253075,-460.0,0.0001986,2]
[373405833,1752988253158,-1490.15,0.0001986,2]
[373405834,1752988253167,-472.33,0.0001986,2]
[373405835,1752988253177,-460.0,0.0001986,2]
[373405836,1752988253186,-1324.34213769,0.00019866,2]
[373405837,1752988253195,-460.0,0.0001996,2]
[373405838,1752988253205,-460.0,0.0001996,2]
[373405839,1752988253214,-460.0,0.0001996,2]
[373405840,1752988253223,-460.0,0.0001996,2]
[373405841,1752988253233,-537.36,0.00019961,2]
[373405842,1752988253243,-460.0,0.00019961,2]
[373405843,1752988253252,-668.97,0.00019962,2]
[373405844,1752988253262,-1680.5,0.00019962,2]
[373405845,1752988253271,-726.41,0.00019962,2]
[373405846,1752988253280,-1149.56,0.00020062,2]
[373405847,1752988253290,-460.0,0.00020062,2]
[373405848,1752988253303,-781.78,0.00020062,2]
[373405849,1752988253312,-851.76,0.00020062,2]
[373405850,1752988253321,-1324.34213769,0.00020107,2]
[373405851,1752988253331,-2275.52,0.00020132,2]
[373405852,1752988253341,-479.41,0.00020133,2]
[373405853,1752988253351,-1541.51,0.00020133,2]
[373405854,1752988253360,-517.18,0.00020133,2]
[373405855,1752988253372,-1155.65,0.00020133,2]
[373405856,1752988253381,-460.0,0.00020133,2]
[373405857,1752988253391,-460.0,0.00020133,2]
[373405858,1752988253400,-460.0,0.00020133,2]